Workbook

Sheet data
A5: م | B5: المحافظة | C5: اسم العضو | D5: الوظيفة | E5: العمل | F5: مقر العمل | G5: التاريخ
A6: =IF(C6="","",MAX($A$5:A5)+1) -> 1 | C6: محمد1 | D6: معلم أول أ | E6: لجنة 1
A7: =IF(C7="","",MAX($A$5:A6)+1) -> 2 | C7: محمد2 | D7: معلم أول أ | E7: لجنة 2
A8: =IF(C8="","",MAX($A$5:A7)+1) -> 3 | C8: محمد3 | D8: معلم أول أ | E8: لجنة 3
A9: =IF(C9="","",MAX($A$5:A8)+1) -> 4 | C9: محمد4 | D9: معلم | E9: لجنة 4
A10: =IF(C10="","",MAX($A$5:A9)+1) -> 5 | C10: محمد5 | D10: معلم أول أ | E10: لجنة 5
A11: =IF(C11="","",MAX($A$5:A10)+1) -> 6 | C11: محمد6 | D11: معلم أول | E11: لجنة 6
A12: =IF(C12="","",MAX($A$5:A11)+1) -> 7 | C12: محمد7 | D12: معلم أول | E12: لجنة 7
A13: =IF(C13="","",MAX($A$5:A12)+1) -> 8 | C13: محمد8 | D13: معلم أول | E13: لجنة 8
A14: =IF(C14="","",MAX($A$5:A13)+1) -> 9 | C14: محمد9 | D14: معلم أول أ | E14: لجنة 9
A15: =IF(C15="","",MAX($A$5:A14)+1) -> 10 | C15: محمد10 | D15: معلم أول أ | E15: لجنة 10
A16: =IF(C16="","",MAX($A$5:A15)+1) -> 11 | C16: محمد11 | D16: معلم | E16: لجنة 11
A17: =IF(C17="","",MAX($A$5:A16)+1) -> 12 | C17: محمد12 | D17: معلم | E17: لجنة 12
A18: =IF(C18="","",MAX($A$5:A17)+1) -> 13 | C18: محمد13 | D18: معلم أول أ | E18: لجنة 13
A19: =IF(C19="","",MAX($A$5:A18)+1) -> 14 | C19: محمد14 | D19: معلم أول أ | E19: لجنة 14
A20: =IF(C20="","",MAX($A$5:A19)+1) -> 15 | C20: محمد15 | D20: معلم | E20: لجنة 15
A21: =IF(C21="","",MAX($A$5:A20)+1) -> 16 | C21: محمد16 | D21: معلم خبير | E21: لجنة 16
A22: =IF(C22="","",MAX($A$5:A21)+1) -> 17 | C22: محمد17 | D22: معلم أول أ | E22: لجنة 17
A23: =IF(C23="","",MAX($A$5:A22)+1) -> 18 | C23: محمد18 | D23: معلم | E23: لجنة 18
A24: =IF(C24="","",MAX($A$5:A23)+1) -> 19 | C24: محمد19 | D24: معلم أول أ | E24: لجنة 19
A25: =IF(C25="","",MAX($A$5:A24)+1) -> 20 | C25: محمد20 | D25: معلم أول أ | E25: لجنة 20
A26: =IF(C26="","",MAX($A$5:A25)+1) -> 21 | C26: محمد21 | D26: معلم أول أ | E26: لجنة 21
A27: =IF(C27="","",MAX($A$5:A26)+1) -> 22 | C27: محمد22 | D27: معلم أول أ | E27: لجنة 22
A28: =IF(C28="","",MAX($A$5:A27)+1) -> 23 | C28: محمد23 | D28: معلم أول | E28: لجنة 23
A29: =IF(C29="","",MAX($A$5:A28)+1) -> 24 | C29: محمد24 | D29: معلم أول أ | E29: لجنة 24
A30: =IF(C30="","",MAX($A$5:A29)+1) -> 25 | C30: محمد25 | D30: معلم أول أ | E30: لجنة 25
A31: =IF(C31="","",MAX($A$5:A30)+1) -> 26 | C31: محمد26 | D31: معلم أول أ | E31: لجنة 26
A32: =IF(C32="","",MAX($A$5:A31)+1) -> 27 | C32: محمد27 | D32: معلم أول أ | E32: لجنة 27
A33: =IF(C33="","",MAX($A$5:A32)+1) -> 28 | C33: محمد28 | D33: معلم أول | E33: لجنة 28
A34: =IF(C34="","",MAX($A$5:A33)+1) -> 29 | C34: محمد29 | D34: معلم أول أ | E34: لجنة 29
A35: =IF(C35="","",MAX($A$5:A34)+1) -> 30 | C35: محمد30 | D35: معلم أول أ | E35: لجنة 30
A36: =IF(C36="","",MAX($A$5:A35)+1) -> 31 | C36: محمد31 | D36: معلم أول | E36: لجنة 31
A37: =IF(C37="","",MAX($A$5:A36)+1) -> 32 | C37: محمد32 | D37: معلم أول أ | E37: لجنة 32
A38: =IF(C38="","",MAX($A$5:A37)+1) -> 33 | C38: محمد33 | D38: معلم | E38: لجنة 33
A39: =IF(C39="","",MAX($A$5:A38)+1) -> 34 | C39: محمد34 | D39: معلم أول أ | E39: لجنة 34
A40: =IF(C40="","",MAX($A$5:A39)+1) -> 35 | C40: محمد35 | D40: معلم أول | E40: لجنة 35
A41: =IF(C41="","",MAX($A$5:A40)+1) -> 36 | C41: محمد36 | D41: معلم أول | E41: لجنة 36
A42: =IF(C42="","",MAX($A$5:A41)+1) -> 37 | C42: محمد37 | D42: معلم أول أ | E42: لجنة 37
A43: =IF(C43="","",MAX($A$5:A42)+1) -> 38 | C43: محمد38 | D43: معلم أول أ | E43: لجنة 38
A44: =IF(C44="","",MAX($A$5:A43)+1) -> 39 | C44: محمد39 | D44: معلم أول أ | E44: لجنة 39
A45: =IF(C45="","",MAX($A$5:A44)+1) -> 40 | C45: محمد40 | D45: معلم خبير | E45: لجنة 40
A46: =IF(C46="","",MAX($A$5:A45)+1) -> 41 | C46: محمد41 | D46: معلم أول أ | E46: لجنة 41
A47: =IF(C47="","",MAX($A$5:A46)+1) -> 42 | C47: محمد42 | D47: معلم أول | E47: لجنة 42
A48: =IF(C48="","",MAX($A$5:A47)+1) -> 43 | C48: محمد43 | D48: معلم | E48: لجنة 43
A49: =IF(C49="","",MAX($A$5:A48)+1) -> 44 | C49: محمد44 | D49: معلم أول | E49: لجنة 44
A50: =IF(C50="","",MAX($A$5:A49)+1) -> 45 | C50: محمد45 | D50: معلم | E50: لجنة 45
A51: =IF(C51="","",MAX($A$5:A50)+1) -> 46 | C51: محمد46 | D51: معلم أول | E51: لجنة 46
A52: =IF(C52="","",MAX($A$5:A51)+1) -> 47 | C52: محمد47 | D52: معلم أول | E52: لجنة 47
A53: =IF(C53="","",MAX($A$5:A52)+1) -> 48 | C53: محمد48 | D53: معلم | E53: لجنة 48
A54: =IF(C54="","",MAX($A$5:A53)+1) -> 49 | C54: محمد49 | D54: معلم | E54: لجنة 49
A55: =IF(C55="","",MAX($A$5:A54)+1) -> 50 | C55: محمد50 | D55: معلم أول | E55: لجنة 50
A56: =IF(C56="","",MAX($A$5:A55)+1) -> 51 | C56: محمد51 | D56: معلم أول أ | E56: لجنة 51
A57: =IF(C57="","",MAX($A$5:A56)+1) -> 52 | C57: محمد52 | D57: معلم أول | E57: لجنة 52
A58: =IF(C58="","",MAX($A$5:A57)+1) -> 53 | C58: محمد53 | D58: معلم أول أ | E58: لجنة 53
A59: =IF(C59="","",MAX($A$5:A58)+1) -> 54 | C59: محمد54 | D59: معلم أول أ | E59: لجنة 54
A60: =IF(C60="","",MAX($A$5:A59)+1) -> 55 | C60: محمد55 | D60: معلم أول | E60: لجنة 55
A61: =IF(C61="","",MAX($A$5:A60)+1) -> 56 | C61: محمد56 | D61: معلم أول | E61: لجنة 56
A62: =IF(C62="","",MAX($A$5:A61)+1) -> 57 | C62: محمد57 | D62: معلم أول أ | E62: لجنة 57
A63: =IF(C63="","",MAX($A$5:A62)+1) -> 58 | C63: محمد58 | D63: معلم أول | E63: لجنة 58
A64: =IF(C64="","",MAX($A$5:A63)+1) -> 59 | C64: محمد59 | D64: معلم خبير | E64: لجنة 59
A65: =IF(C65="","",MAX($A$5:A64)+1) -> 60 | C65: محمد60 | D65: معلم أول | E65: لجنة 60
A66: =IF(C66="","",MAX($A$5:A65)+1) -> 61 | C66: محمد61 | D66: معلم | E66: لجنة 61
A67: =IF(C67="","",MAX($A$5:A66)+1) -> 62 | C67: محمد62 | D67: معلم أول | E67: لجنة 62
A68: =IF(C68="","",MAX($A$5:A67)+1) -> 63 | C68: محمد63 | D68: معلم أول أ | E68: لجنة 63
A69: =IF(C69="","",MAX($A$5:A68)+1) -> 64 | C69: محمد64 | D69: معلم | E69: لجنة 64
A70: =IF(C70="","",MAX($A$5:A69)+1) -> 65 | C70: محمد65 | D70: معلم أول أ | E70: لجنة 65
A71: =IF(C71="","",MAX($A$5:A70)+1) -> 66 | C71: محمد66 | D71: معلم | E71: لجنة 66
A72: =IF(C72="","",MAX($A$5:A71)+1) -> 67 | C72: محمد67 | D72: معلم أول أ | E72: لجنة 67
A73: =IF(C73="","",MAX($A$5:A72)+1) -> 68 | C73: محمد68 | D73: معلم | E73: لجنة 68
A74: =IF(C74="","",MAX($A$5:A73)+1) -> 69 | C74: محمد69 | D74: معلم | E74: لجنة 69
A75: =IF(C75="","",MAX($A$5:A74)+1) -> 70 | C75: محمد70 | D75: كبير معلمين | E75: لجنة 70
A76: =IF(C76="","",MAX($A$5:A75)+1) -> 71 | C76: محمد71 | D76: معلم | E76: لجنة 71
A77: =IF(C77="","",MAX($A$5:A76)+1) -> 72 | C77: محمد72 | D77: معلم | E77: لجنة 72
A78: =IF(C78="","",MAX($A$5:A77)+1) -> 73 | C78: محمد73 | D78: معلم | E78: لجنة 73
A79: =IF(C79="","",MAX($A$5:A78)+1) -> 74 | C79: محمد74 | D79: معلم | E79: لجنة 74
A80: =IF(C80="","",MAX($A$5:A79)+1) -> 75 | C80: محمد75 | D80: معلم | E80: لجنة 75
A81: =IF(C81="","",MAX($A$5:A80)+1) -> 76 | C81: محمد76 | D81: معلم أول | E81: لجنة 76
A82: =IF(C82="","",MAX($A$5:A81)+1) -> 77 | C82: محمد77 | D82: معلم خبير | E82: لجنة 77
A83: =IF(C83="","",MAX($A$5:A82)+1) -> 78 | C83: محمد78 | D83: معلم أول أ | E83: لجنة 78
A84: =IF(C84="","",MAX($A$5:A83)+1) -> 79 | C84: محمد79 | D84: معلم أول أ | E84: لجنة 79
A85: =IF(C85="","",MAX($A$5:A84)+1) -> 80 | C85: محمد80 | D85: معلم أول أ | E85: لجنة 80
A86: =IF(C86="","",MAX($A$5:A85)+1) -> 81 | C86: محمد81 | D86: كبير معلمين | E86: لجنة 81
A87: =IF(C87="","",MAX($A$5:A86)+1) -> 82 | C87: محمد82 | D87: معلم أول | E87: لجنة 82
A88: =IF(C88="","",MAX($A$5:A87)+1) -> 83 | C88: محمد83 | D88: معلم أول أ | E88: لجنة 83
A89: =IF(C89="","",MAX($A$5:A88)+1) -> 84 | C89: محمد84 | D89: معلم أول أ | E89: لجنة 84
A90: =IF(C90="","",MAX($A$5:A89)+1) -> 85 | C90: محمد85 | D90: معلم | E90: لجنة 85
A91: =IF(C91="","",MAX($A$5:A90)+1) -> 86 | C91: محمد86 | D91: معلم أول | E91: لجنة 86
A92: =IF(C92="","",MAX($A$5:A91)+1) -> 87 | C92: محمد87 | D92: معلم أول | E92: لجنة 87
A93: =IF(C93="","",MAX($A$5:A92)+1) -> 88 | C93: محمد88 | D93: معلم أول | E93: لجنة 88
A94: =IF(C94="","",MAX($A$5:A93)+1) -> 89 | C94: محمد89 | D94: معلم أول أ | E94: لجنة 89
A95: =IF(C95="","",MAX($A$5:A94)+1) -> 90 | C95: محمد90 | D95: معلم أول أ | E95: لجنة 90
A96: =IF(C96="","",MAX($A$5:A95)+1) -> 91 | C96: محمد91 | D96: معلم أول أ | E96: لجنة 91
A97: =IF(C97="","",MAX($A$5:A96)+1) -> 92 | C97: محمد92 | D97: معلم أول أ | E97: لجنة 92
A98: =IF(C98="","",MAX($A$5:A97)+1) -> 93 | C98: محمد93 | D98: معلم أول أ | E98: لجنة 93
A99: =IF(C99="","",MAX($A$5:A98)+1) -> 94 | C99: محمد94 | D99: معلم أول أ | E99: لجنة 94
A100: =IF(C100="","",MAX($A$5:A99)+1) -> 95 | C100: محمد95 | D100: معلم أول | E100: لجنة 95
A101: =IF(C101="","",MAX($A$5:A100)+1) -> 96 | C101: محمد96 | D101: معلم أول | E101: لجنة 96
A102: =IF(C102="","",MAX($A$5:A101)+1) -> 97 | C102: محمد97 | D102: معلم أول أ | E102: لجنة 97
A103: =IF(C103="","",MAX($A$5:A102)+1) -> 98 | C103: محمد98 | D103: معلم أول | E103: لجنة 98
A104: =IF(C104="","",MAX($A$5:A103)+1) -> 99 | C104: محمد71 | D104: معلم | E104: لجنة 71
A105: =IF(C105="","",MAX($A$5:A104)+1) -> 100 | C105: محمد72 | D105: معلم | E105: لجنة 72
A106: =IF(C106="","",MAX($A$5:A105)+1) -> 101 | C106: محمد73 | D106: معلم | E106: لجنة 73
A107: =IF(C107="","",MAX($A$5:A106)+1) -> 102 | C107: محمد74 | D107: معلم | E107: لجنة 74
A108: =IF(C108="","",MAX($A$5:A107)+1) -> 103 | C108: محمد75 | D108: معلم | E108: لجنة 75
A109: =IF(C109="","",MAX($A$5:A108)+1) -> 104 | C109: محمد76 | D109: معلم أول | E109: لجنة 76
A110: =IF(C110="","",MAX($A$5:A109)+1) -> 105 | C110: محمد77 | D110: معلم خبير | E110: لجنة 77
A111: =IF(C111="","",MAX($A$5:A110)+1) -> 106 | C111: محمد78 | D111: معلم أول أ | E111: لجنة 78
A112: =IF(C112="","",MAX($A$5:A111)+1) -> 107 | C112: محمد79 | D112: معلم أول أ | E112: لجنة 79
A113: =IF(C113="","",MAX($A$5:A112)+1) -> 108 | C113: محمد80 | D113: معلم أول أ | E113: لجنة 80
A114: =IF(C114="","",MAX($A$5:A113)+1) -> 109 | C114: محمد81 | D114: كبير معلمين | E114: لجنة 81
A115: =IF(C115="","",MAX($A$5:A114)+1) -> 110 | C115: محمد82 | D115: معلم أول | E115: لجنة 82
A116: =IF(C116="","",MAX($A$5:A115)+1) -> 111 | C116: محمد83 | D116: معلم أول أ | E116: لجنة 83
A117: =IF(C117="","",MAX($A$5:A116)+1) -> 112 | C117: محمد84 | D117: معلم أول أ | E117: لجنة 84
A118: =IF(C118="","",MAX($A$5:A117)+1) -> 113 | C118: محمد85 | D118: معلم | E118: لجنة 85
A119: =IF(C119="","",MAX($A$5:A118)+1) -> 114 | C119: محمد86 | D119: معلم أول | E119: لجنة 86
A120: =IF(C120="","",MAX($A$5:A119)+1) -> 115 | C120: محمد87 | D120: معلم أول | E120: لجنة 87
A121: =IF(C121="","",MAX($A$5:A120)+1) -> 116 | C121: محمد88 | D121: معلم أول | E121: لجنة 88
A122: =IF(C122="","",MAX($A$5:A121)+1) -> 117 | C122: محمد89 | D122: معلم أول أ | E122: لجنة 89
A123: =IF(C123="","",MAX($A$5:A122)+1) -> 118 | C123: محمد90 | D123: معلم أول أ | E123: لجنة 90
A124: =IF(C124="","",MAX($A$5:A123)+1) -> 119 | C124: محمد91 | D124: معلم أول أ | E124: لجنة 91
A125: =IF(C125="","",MAX($A$5:A124)+1) -> 120 | C125: محمد92 | D125: معلم أول أ | E125: لجنة 92
A126: =IF(C126="","",MAX($A$5:A125)+1) -> 121 | C126: محمد86 | D126: معلم أول | E126: لجنة 86
A127: =IF(C127="","",MAX($A$5:A126)+1) -> 122 | C127: محمد87 | D127: معلم أول | E127: لجنة 87
A128: =IF(C128="","",MAX($A$5:A127)+1) -> 123 | C128: محمد88 | D128: معلم أول | E128: لجنة 88
A129: =IF(C129="","",MAX($A$5:A128)+1) -> 124 | C129: محمد89 | D129: معلم أول أ | E129: لجنة 89
A130: =IF(C130="","",MAX($A$5:A129)+1) -> 125 | C130: محمد90 | D130: معلم أول أ | E130: لجنة 90
A131: =IF(C131="","",MAX($A$5:A130)+1) -> 126 | C131: محمد91 | D131: معلم أول أ | E131: لجنة 91
A132: =IF(C132="","",MAX($A$5:A131)+1) -> 127 | C132: محمد92 | D132: معلم أول أ | E132: لجنة 92
A133: =IF(C133="","",MAX($A$5:A132)+1) -> 
A134: =IF(C134="","",MAX($A$5:A133)+1) -> 
A135: =IF(C135="","",MAX($A$5:A134)+1) -> 
A136: =IF(C136="","",MAX($A$5:A135)+1) -> 
A137: =IF(C137="","",MAX($A$5:A136)+1) -> 
A138: =IF(C138="","",MAX($A$5:A137)+1) -> 
A139: =IF(C139="","",MAX($A$5:A138)+1) -> 
A140: =IF(C140="","",MAX($A$5:A139)+1) -> 
A141: =IF(C141="","",MAX($A$5:A140)+1) -> 
A142: =IF(C142="","",MAX($A$5:A141)+1) -> 
A143: =IF(C143="","",MAX($A$5:A142)+1) -> 
A144: =IF(C144="","",MAX($A$5:A143)+1) -> 
A145: =IF(C145="","",MAX($A$5:A144)+1) -> 
A146: =IF(C146="","",MAX($A$5:A145)+1) -> 
A147: =IF(C147="","",MAX($A$5:A146)+1) -> 
A148: =IF(C148="","",MAX($A$5:A147)+1) -> 
A149: =IF(C149="","",MAX($A$5:A148)+1) -> 
A150: =IF(C150="","",MAX($A$5:A149)+1) -> 
A151: =IF(C151="","",MAX($A$5:A150)+1) -> 
A152: =IF(C152="","",MAX($A$5:A151)+1) -> 
A153: =IF(C153="","",MAX($A$5:A152)+1) -> 
A154: =IF(C154="","",MAX($A$5:A153)+1) -> 
A155: =IF(C155="","",MAX($A$5:A154)+1) -> 
A156: =IF(C156="","",MAX($A$5:A155)+1) -> 
A157: =IF(C157="","",MAX($A$5:A156)+1) -> 
A158: =IF(C158="","",MAX($A$5:A157)+1) -> 
A159: =IF(C159="","",MAX($A$5:A158)+1) -> 
A160: =IF(C160="","",MAX($A$5:A159)+1) -> 
A161: =IF(C161="","",MAX($A$5:A160)+1) -> 
A162: =IF(C162="","",MAX($A$5:A161)+1) -> 
A163: =IF(C163="","",MAX($A$5:A162)+1) -> 
A164: =IF(C164="","",MAX($A$5:A163)+1) -> 
A165: =IF(C165="","",MAX($A$5:A164)+1) -> 
A166: =IF(C166="","",MAX($A$5:A165)+1) -> 
A167: =IF(C167="","",MAX($A$5:A166)+1) -> 
A168: =IF(C168="","",MAX($A$5:A167)+1) -> 
A169: =IF(C169="","",MAX($A$5:A168)+1) -> 
A170: =IF(C170="","",MAX($A$5:A169)+1) -> 
A171: =IF(C171="","",MAX($A$5:A170)+1) -> 
A172: =IF(C172="","",MAX($A$5:A171)+1) -> 
A173: =IF(C173="","",MAX($A$5:A172)+1) -> 
A174: =IF(C174="","",MAX($A$5:A173)+1) -> 
A175: =IF(C175="","",MAX($A$5:A174)+1) -> 
A176: =IF(C176="","",MAX($A$5:A175)+1) -> 
A177: =IF(C177="","",MAX($A$5:A176)+1) -> 
A178: =IF(C178="","",MAX($A$5:A177)+1) -> 
A179: =IF(C179="","",MAX($A$5:A178)+1) -> 
A180: =IF(C180="","",MAX($A$5:A179)+1) -> 
A181: =IF(C181="","",MAX($A$5:A180)+1) -> 
A182: =IF(C182="","",MAX($A$5:A181)+1) -> 
A183: =IF(C183="","",MAX($A$5:A182)+1) -> 
A184: =IF(C184="","",MAX($A$5:A183)+1) -> 
A185: =IF(C185="","",MAX($A$5:A184)+1) -> 
A186: =IF(C186="","",MAX($A$5:A185)+1) -> 
A187: =IF(C187="","",MAX($A$5:A186)+1) -> 
A188: =IF(C188="","",MAX($A$5:A187)+1) -> 
A189: =IF(C189="","",MAX($A$5:A188)+1) -> 
A190: =IF(C190="","",MAX($A$5:A189)+1) -> 
A191: =IF(C191="","",MAX($A$5:A190)+1) -> 
A192: =IF(C192="","",MAX($A$5:A191)+1) -> 
A193: =IF(C193="","",MAX($A$5:A192)+1) -> 
A194: =IF(C194="","",MAX($A$5:A193)+1) -> 
A195: =IF(C195="","",MAX($A$5:A194)+1) -> 
A196: =IF(C196="","",MAX($A$5:A195)+1) -> 
A197: =IF(C197="","",MAX($A$5:A196)+1) -> 
A198: =IF(C198="","",MAX($A$5:A197)+1) -> 
A199: =IF(C199="","",MAX($A$5:A198)+1) -> 
A200: =IF(C200="","",MAX($A$5:A199)+1) -> 
A201: =IF(C201="","",MAX($A$5:A200)+1) -> 
A202: =IF(C202="","",MAX($A$5:A201)+1) -> 
A203: =IF(C203="","",MAX($A$5:A202)+1) -> 
A204: =IF(C204="","",MAX($A$5:A203)+1) -> 
... 3796 more rows

Sheet Archive
C5: وزارة التــربية والتعليـم | G5: إستمارة رقم "3" عضوية
C6: الإدارة العامـة للامتحانـات
C7: لجنة الإدارة لامتحان دبلوم المدارس الثانوية
D8: بيان بأسماء السادة المنتدبين لأعمال الامتحانات دبلوم المدارس الثانوية
C9: م | D9: المحافظة | E9: اسم العضو | F9: الوظيفة | G9: العمل | I9: التوقيع بالعلم | J9: ملاحظات
C10: 1 | E10: محمد1 | F10: معلم أول أ | G10: لجنة 1
C11: 2 | E11: محمد2 | F11: معلم أول أ | G11: لجنة 2
C12: 3 | E12: محمد3 | F12: معلم أول أ | G12: لجنة 3
C13: 4 | E13: محمد4 | F13: معلم | G13: لجنة 4
C14: 5 | E14: محمد5 | F14: معلم أول أ | G14: لجنة 5
C15: 6 | E15: محمد6 | F15: معلم أول | G15: لجنة 6
C16: 7 | E16: محمد7 | F16: معلم أول | G16: لجنة 7
C17: 8 | E17: محمد8 | F17: معلم أول | G17: لجنة 8
C18: 9 | E18: محمد9 | F18: معلم أول أ | G18: لجنة 9
C19: 10 | E19: محمد10 | F19: معلم أول أ | G19: لجنة 10
C20: 11 | E20: محمد11 | F20: معلم | G20: لجنة 11
C21: 12 | E21: محمد12 | F21: معلم | G21: لجنة 12
C22: 13 | E22: محمد13 | F22: معلم أول أ | G22: لجنة 13
C23: 14 | E23: محمد14 | F23: معلم أول أ | G23: لجنة 14
C24: 15 | E24: محمد15 | F24: معلم | G24: لجنة 15
C25: 16 | E25: محمد16 | F25: معلم خبير | G25: لجنة 16
C26: 17 | E26: محمد17 | F26: معلم أول أ | G26: لجنة 17
C27: 18 | E27: محمد18 | F27: معلم | G27: لجنة 18
C28: 19 | E28: محمد19 | F28: معلم أول أ | G28: لجنة 19
C29: 20 | E29: محمد20 | F29: معلم أول أ | G29: لجنة 20
C30: 21 | E30: محمد21 | F30: معلم أول أ | G30: لجنة 21
C31: 22 | E31: محمد22 | F31: معلم أول أ | G31: لجنة 22
C32: 23 | E32: محمد23 | F32: معلم أول | G32: لجنة 23
C33: 24 | E33: محمد24 | F33: معلم أول أ | G33: لجنة 24
C34: 25 | E34: محمد25 | F34: معلم أول أ | G34: لجنة 25
E35: أملاء: | I35: رئيس لجنة الأدارة
E36: راجع الأملاء :
C39: وزارة التــربية والتعليـم | G39: إستمارة رقم "3" عضوية
C40: الإدارة العامـة للامتحانـات
C41: لجنة الإدارة لامتحان دبلوم المدارس الثانوية
D42: بيان بأسماء السادة المنتدبين لأعمال الامتحانات دبلوم المدارس الثانوية
C43: م | D43: المحافظة | E43: اسم العضو | F43: الوظيفة | G43: العمل | I43: التوقيع بالعلم | J43: ملاحظات
C44: 26 | E44: محمد26 | F44: معلم أول أ | G44: لجنة 26
C45: 27 | E45: محمد27 | F45: معلم أول أ | G45: لجنة 27
C46: 28 | E46: محمد28 | F46: معلم أول | G46: لجنة 28
C47: 29 | E47: محمد29 | F47: معلم أول أ | G47: لجنة 29
C48: 30 | E48: محمد30 | F48: معلم أول أ | G48: لجنة 30
C49: 31 | E49: محمد31 | F49: معلم أول | G49: لجنة 31
C50: 32 | E50: محمد32 | F50: معلم أول أ | G50: لجنة 32
C51: 33 | E51: محمد33 | F51: معلم | G51: لجنة 33
C52: 34 | E52: محمد34 | F52: معلم أول أ | G52: لجنة 34
C53: 35 | E53: محمد35 | F53: معلم أول | G53: لجنة 35
C54: 36 | E54: محمد36 | F54: معلم أول | G54: لجنة 36
C55: 37 | E55: محمد37 | F55: معلم أول أ | G55: لجنة 37
C56: 38 | E56: محمد38 | F56: معلم أول أ | G56: لجنة 38
C57: 39 | E57: محمد39 | F57: معلم أول أ | G57: لجنة 39
C58: 40 | E58: محمد40 | F58: معلم خبير | G58: لجنة 40
C59: 41 | E59: محمد41 | F59: معلم أول أ | G59: لجنة 41
C60: 42 | E60: محمد42 | F60: معلم أول | G60: لجنة 42
C61: 43 | E61: محمد43 | F61: معلم | G61: لجنة 43
C62: 44 | E62: محمد44 | F62: معلم أول | G62: لجنة 44
C63: 45 | E63: محمد45 | F63: معلم | G63: لجنة 45
C64: 46 | E64: محمد46 | F64: معلم أول | G64: لجنة 46
C65: 47 | E65: محمد47 | F65: معلم أول | G65: لجنة 47
C66: 48 | E66: محمد48 | F66: معلم | G66: لجنة 48
C67: 49 | E67: محمد49 | F67: معلم | G67: لجنة 49
C68: 50 | E68: محمد50 | F68: معلم أول | G68: لجنة 50
E69: أملاء: | I69: رئيس لجنة الأدارة
E70: راجع الأملاء :
C72: وزارة التــربية والتعليـم | G72: إستمارة رقم "3" عضوية
C73: الإدارة العامـة للامتحانـات
C74: لجنة الإدارة لامتحان دبلوم المدارس الثانوية
D75: بيان بأسماء السادة المنتدبين لأعمال الامتحانات دبلوم المدارس الثانوية
C76: م | D76: المحافظة | E76: اسم العضو | F76: الوظيفة | G76: العمل | I76: التوقيع بالعلم | J76: ملاحظات
C77: 51 | E77: محمد51 | F77: معلم أول أ | G77: لجنة 51
C78: 52 | E78: محمد52 | F78: معلم أول | G78: لجنة 52
C79: 53 | E79: محمد53 | F79: معلم أول أ | G79: لجنة 53
C80: 54 | E80: محمد54 | F80: معلم أول أ | G80: لجنة 54
C81: 55 | E81: محمد55 | F81: معلم أول | G81: لجنة 55
C82: 56 | E82: محمد56 | F82: معلم أول | G82: لجنة 56
C83: 57 | E83: محمد57 | F83: معلم أول أ | G83: لجنة 57
C84: 58 | E84: محمد58 | F84: معلم أول | G84: لجنة 58
C85: 59 | E85: محمد59 | F85: معلم خبير | G85: لجنة 59
C86: 60 | E86: محمد60 | F86: معلم أول | G86: لجنة 60
C87: 61 | E87: محمد61 | F87: معلم | G87: لجنة 61
C88: 62 | E88: محمد62 | F88: معلم أول | G88: لجنة 62
C89: 63 | E89: محمد63 | F89: معلم أول أ | G89: لجنة 63
C90: 64 | E90: محمد64 | F90: معلم | G90: لجنة 64
C91: 65 | E91: محمد65 | F91: معلم أول أ | G91: لجنة 65
C92: 66 | E92: محمد66 | F92: معلم | G92: لجنة 66
C93: 67 | E93: محمد67 | F93: معلم أول أ | G93: لجنة 67
C94: 68 | E94: محمد68 | F94: معلم | G94: لجنة 68
C95: 69 | E95: محمد69 | F95: معلم | G95: لجنة 69
C96: 70 | E96: محمد70 | F96: كبير معلمين | G96: لجنة 70
C97: 71 | E97: محمد71 | F97: معلم | G97: لجنة 71
C98: 72 | E98: محمد72 | F98: معلم | G98: لجنة 72
C99: 73 | E99: محمد73 | F99: معلم | G99: لجنة 73
C100: 74 | E100: محمد74 | F100: معلم | G100: لجنة 74
C101: 75 | E101: محمد75 | F101: معلم | G101: لجنة 75
E102: أملاء: | I102: رئيس لجنة الأدارة
E103: راجع الأملاء :
C105: وزارة التــربية والتعليـم | G105: إستمارة رقم "3" عضوية
C106: الإدارة العامـة للامتحانـات
C107: لجنة الإدارة لامتحان دبلوم المدارس الثانوية
D108: بيان بأسماء السادة المنتدبين لأعمال الامتحانات دبلوم المدارس الثانوية
C109: م | D109: المحافظة | E109: اسم العضو | F109: الوظيفة | G109: العمل | I109: التوقيع بالعلم | J109: ملاحظات
C110: 76 | E110: محمد76 | F110: معلم أول | G110: لجنة 76
C111: 77 | E111: محمد77 | F111: معلم خبير | G111: لجنة 77
C112: 78 | E112: محمد78 | F112: معلم أول أ | G112: لجنة 78
C113: 79 | E113: محمد79 | F113: معلم أول أ | G113: لجنة 79
C114: 80 | E114: محمد80 | F114: معلم أول أ | G114: لجنة 80
C115: 81 | E115: محمد81 | F115: كبير معلمين | G115: لجنة 81
C116: 82 | E116: محمد82 | F116: معلم أول | G116: لجنة 82
C117: 83 | E117: محمد83 | F117: معلم أول أ | G117: لجنة 83
C118: 84 | E118: محمد84 | F118: معلم أول أ | G118: لجنة 84
C119: 85 | E119: محمد85 | F119: معلم | G119: لجنة 85
C120: 86 | E120: محمد86 | F120: معلم أول | G120: لجنة 86
C121: 87 | E121: محمد87 | F121: معلم أول | G121: لجنة 87
C122: 88 | E122: محمد88 | F122: معلم أول | G122: لجنة 88
C123: 89 | E123: محمد89 | F123: معلم أول أ | G123: لجنة 89
C124: 90 | E124: محمد90 | F124: معلم أول أ | G124: لجنة 90
C125: 91 | E125: محمد91 | F125: معلم أول أ | G125: لجنة 91
C126: 92 | E126: محمد92 | F126: معلم أول أ | G126: لجنة 92
C127: 93 | E127: محمد93 | F127: معلم أول أ | G127: لجنة 93
C128: 94 | E128: محمد94 | F128: معلم أول أ | G128: لجنة 94
C129: 95 | E129: محمد95 | F129: معلم أول | G129: لجنة 95
C130: 96 | E130: محمد96 | F130: معلم أول | G130: لجنة 96
C131: 97 | E131: محمد97 | F131: معلم أول أ | G131: لجنة 97
C132: 98 | E132: محمد98 | F132: معلم أول | G132: لجنة 98
C133: 99 | E133: محمد71 | F133: معلم | G133: لجنة 71
C134: 100 | E134: محمد72 | F134: معلم | G134: لجنة 72
E135: أملاء: | I135: رئيس لجنة الأدارة
E136: راجع الأملاء :
C138: وزارة التــربية والتعليـم | G138: إستمارة رقم "3" عضوية
C139: الإدارة العامـة للامتحانـات
C140: لجنة الإدارة لامتحان دبلوم المدارس الثانوية
D141: بيان بأسماء السادة المنتدبين لأعمال الامتحانات دبلوم المدارس الثانوية
C142: م | D142: المحافظة | E142: اسم العضو | F142: الوظيفة | G142: العمل | I142: التوقيع بالعلم | J142: ملاحظات
C143: 101 | E143: محمد73 | F143: معلم | G143: لجنة 73
C144: 102 | E144: محمد74 | F144: معلم | G144: لجنة 74
C145: 103 | E145: محمد75 | F145: معلم | G145: لجنة 75
C146: 104 | E146: محمد76 | F146: معلم أول | G146: لجنة 76
C147: 105 | E147: محمد77 | F147: معلم خبير | G147: لجنة 77
C148: 106 | E148: محمد78 | F148: معلم أول أ | G148: لجنة 78
C149: 107 | E149: محمد79 | F149: معلم أول أ | G149: لجنة 79
C150: 108 | E150: محمد80 | F150: معلم أول أ | G150: لجنة 80
C151: 109 | E151: محمد81 | F151: كبير معلمين | G151: لجنة 81
C152: 110 | E152: محمد82 | F152: معلم أول | G152: لجنة 82
C153: 111 | E153: محمد83 | F153: معلم أول أ | G153: لجنة 83
C154: 112 | E154: محمد84 | F154: معلم أول أ | G154: لجنة 84
C155: 113 | E155: محمد85 | F155: معلم | G155: لجنة 85
C156: 114 | E156: محمد86 | F156: معلم أول | G156: لجنة 86
C157: 115 | E157: محمد87 | F157: معلم أول | G157: لجنة 87
C158: 116 | E158: محمد88 | F158: معلم أول | G158: لجنة 88
C159: 117 | E159: محمد89 | F159: معلم أول أ | G159: لجنة 89
C160: 118 | E160: محمد90 | F160: معلم أول أ | G160: لجنة 90
C161: 119 | E161: محمد91 | F161: معلم أول أ | G161: لجنة 91
C162: 120 | E162: محمد92 | F162: معلم أول أ | G162: لجنة 92
C163: 121 | E163: محمد86 | F163: معلم أول | G163: لجنة 86
C164: 122 | E164: محمد87 | F164: معلم أول | G164: لجنة 87
C165: 123 | E165: محمد88 | F165: معلم أول | G165: لجنة 88
C166: 124 | E166: محمد89 | F166: معلم أول أ | G166: لجنة 89
C167: 125 | E167: محمد90 | F167: معلم أول أ | G167: لجنة 90
E168: أملاء: | I168: رئيس لجنة الأدارة
E169: راجع الأملاء :
C171: وزارة التــربية والتعليـم | G171: إستمارة رقم "3" عضوية
C172: الإدارة العامـة للامتحانـات
C173: لجنة الإدارة لامتحان دبلوم المدارس الثانوية
D174: بيان بأسماء السادة المنتدبين لأعمال الامتحانات دبلوم المدارس الثانوية
C175: م | D175: المحافظة | E175: اسم العضو | F175: الوظيفة | G175: العمل | I175: التوقيع بالعلم | J175: ملاحظات
C176: 126 | E176: محمد91 | F176: معلم أول أ | G176: لجنة 91
C177: 127 | E177: محمد92 | F177: معلم أول أ | G177: لجنة 92
E201: أملاء: | I201: رئيس لجنة الأدارة
E202: راجع الأملاء :
